[Event "87th Spanish Championship 2022"]
[Site "Linares"]
[Date "2022.08.13"]
[Round "3.15"]
[White "Esquivias Quintero, Luis Manuel"]
[Black "Moreno Ruiz, Javier"]
[Result "0-1"]
[ECO "C09"]
[WhiteElo "2299"]
[BlackElo "2428"]
[Annotator "TA"]
[PlyCount "116"]
[EventDate "2022.08.11"]
[EventType "swiss"]
[EventCountry "ESP"]
[SourceTitle "playchess.com"]
[Source "ChessBase"]
[SourceQuality "1"]
[TimeControl "5400+30"]

{[%evp 12,116,24,23,33,23,36,28,37,40,33,19,20,19,12,12,21,23,33,30,29,18,39,23,29,39,38,32,38,34,79,56,56,62,58,75,35,0,60,75,95,97,94,66,61,68,48,68,152,148,276,258,243,51,35,61,56,71,52,29,35,0,0,0,0,0,0,-24,-30,-65,-65,-439,-439,-429,-287,-428,-244,-414,-134,-446,-428,-413,-405,-644,-597,-644,-558,-517,-580,-1946,-1914,-1623,-1275,-1576,-1412,-2619,-1715,-5197,-6552,-12006,-5431,-5535,-2537,-29979,-29980,-29989,-29962]} 1. e4 {[%emt 0:00:03]} e6 {[%emt 0:02:34]} 2. d4 {[%emt 0:00:10]} d5 {[%emt 0:00:36]} 3. Nd2 {[%emt 0:00:06]} c5 {[%emt 0:00:18]} 4. Ngf3 {[%emt 0:00:07]} Nc6 {[%emt 0:00:17]} 5. exd5 {[%emt 0:00:33]} exd5 {[%emt 0:00:07]} 6. Bb5 {[%emt 0:00:04]} Qe7+ $1 {[%emt 0:00:21][%mdl 4] is currently scoring better than 6...Bd6.} 7. Be2 {[%emt 0:00:26]} Qc7 {[%emt 0:00:31] C09: French Tarrasch: 3...c5 4 exd5 exd5 5 Ngf3 Nc6.} ({Don't do} 7... Nxd4 8. Nxd4 cxd4 9. O-O $16) 8. O-O {[%emt 0:00:09]} Nf6 {[%emt 0:00:09]} 9. Re1 {[%emt 0:00:14]} Be6 {[%emt 0:00:53] White has an edge.} 10. Bb5 {[%emt 0:18:03]} Be7 {[%emt 0:01:54][%cal Bf8e7,Be7c5,Bc5b6][%mdl 32]} 11. dxc5 {[%emt 0:02:38]} Bxc5 {[%emt 0:00:10]} 12. Nb3 {[%emt 0:01:32]} Bb6 {[%emt 0:01:29]} 13. Be3 {[%emt 0:03:57]} O-O {[%emt 0:01:14]} 14. h3 {[%emt 0:02:25] [#]} Ne4 $146 {[%emt 0:01:44]} ({Predecessor:} 14... Bf5 15. Bxb6 Qxb6 16. a4 Rfe8 17. Rxe8+ Rxe8 18. Nfd4 Bd7 19. a5 Qc7 20. Bf1 Ne4 {½-½ (62) Pivinsky,E (2490)-Tyulenko,Y (2432) ICCF email 2018}) 15. c3 {[%emt 0:02:48]} Rae8 {[%emt 0:06:03]} 16. Qc2 {[%emt 0:15:36]} Re7 {[%emt 0:07:14]} 17. Bxb6 {[%emt 0:06:45]} Qxb6 {[%emt 0:06:35]} 18. Nbd4 {[%emt 0:02:06]} h6 {[%emt 0:02:21]} 19. Bd3 {[%emt 0:06:39]} Bc8 {[%emt 0:05:39]} 20. Re2 {[%emt 0:04:54]} ({But not} 20. Bxe4 dxe4 21. Nxc6 bxc6 $11) 20... f5 {[%emt 0:13:32]} 21. Rae1 {[%emt 0:02:51]} Ref7 {[%emt 0:09:25]} 22. Qb3 {[%emt 0:05:59]} Qc5 {[%emt 0:01:40]} 23. Qb5 {[%emt 0:03:27]} Qd6 {[%emt 0:00:41]} 24. c4 {[%emt 0:03:46]} Nxd4 {[%emt 0:18:19]} (24... Nb4 $11 25. Bxe4 fxe4) 25. Nxd4 $14 {[%emt 0:00:11]} dxc4 {[%emt 0:00:14]} 26. Qxc4 {[%emt 0:00:52]} Qb6 {[%emt 0:03:32]} 27. Bxe4 {[%emt 0:07:05]} fxe4 {[%emt 0:00:05]} 28. Rxe4 {[%emt 0:00:03]} Qxb2 {[%emt 0:03:21]} 29. Rf4 {[%emt 0:00:07] Strongly threatening Rxf7.} Qd2 {[%emt 0:05:05]} (29... Bd7 $1 $14) 30. Ree4 $16 {[%emt 0:01:55] Threatens to win with Rxf7.} Bd7 {[%emt 0:01:04] [#]} (30... Qd1+ $16 {was necessary.} 31. Kh2 b5 32. Nxb5 Qd7 33. Rxf7 Qxf7) 31. Nf3 $1 $18 {[%emt 0:01:33]} Qd6 {[%emt 0:06:12][%cal Od7e6]} 32. Ne5 $2 {[%emt 0:03:26]} (32. Rxf7 $18 Rxf7 33. Ne5) 32... Qd1+ $14 {[%emt 0:00:52]} 33. Kh2 {[%emt 0:00:05][%cal Rf4f7]} b5 {[%emt 0:00:10]} 34. Qxf7+ {[%emt 0:01:15]} Rxf7 {[%emt 0:00:06]} 35. Rxf7 {[%emt 0:00:03]} Qd5 {[%emt 0:02:20][%csl LRa2,LRe4]} 36. f3 {[%emt 0:00:21]} Be6 {[%emt 0:00:20]} 37. Rxa7 {[%emt 0:01:49]} Bf5 {[%emt 0:00:05] Prevents Ng6.} 38. Re3 {[%emt 0:03:45]} Qd4 {[%emt 0:00:32][%csl LRa7,LRe3]} 39. Raa3 {[%emt 0:00:56]} b4 {[%emt 0:00:11][%mdl 1024] Black has compensation.} 40. Rab3 {[%emt 0:01:10]} Bc2 {[%emt 0:00:12] [#] aiming for ...Qf4+.} 41. Ng4 $2 {[%emt 0:00:33][%mdl 8192]} h5 $19 {[%emt 0:00:47]} 42. Re8+ {[%emt 0:00:24]} Kf7 {[%emt 0:00:28]} 43. Rbe3 {[%emt 0:00:02]} (43. Re2 $142 Bxb3 44. Ne5+ Kf6 45. axb3) 43... hxg4 {[%emt 0:00:10]} (43... Qd6+ $142 44. Kg1 hxg4 45. hxg4 Bd3) 44. hxg4 $2 {[%emt 0:00:01]} (44. R3e7+ Kg6 45. hxg4) 44... Bb1 $2 {[%emt 0:00:39]} (44... Qd6+ $19 {and Black stays clearly on top.} 45. Kg1 Bb1) 45. R8e7+ $2 {[%emt 0:00:55][%mdl 8192]} (45. R3e7+ $17 {nothing else works.} Kg6 46. Rb7) 45... Kg8 {[%emt 0:00:16]} 46. Re8+ {[%emt 0:00:22]} Kh7 {[%emt 0:00:12]} 47. R3e5 {[%emt 0:00:12]} (47. Re2 $142 Bd3 48. Re1) 47... Bxa2 {[%emt 0:00:59] And now ...Bf7 would win.} 48. Rh5+ {[%emt 0:00:25]} Kg6 {[%emt 0:00:08] ...Bc4 is the strong threat.} 49. Re4 {[%emt 0:00:18]} Qd6+ {[%emt 0:00:53]} 50. f4 {[%emt 0:00:01]} Bb1 {[%emt 0:01:04]} 51. Rg5+ {[%emt 0:02:08]} Kh7 {[%emt 0:00:10]} 52. Rh5+ {[%emt 0:00:23]} Kg8 {[%emt 0:00:14]} 53. Rc4 {[%emt 0:00:14]} Bd3 {[%emt 0:00:31]} 54. Rc8+ {[%emt 0:00:32]} Kf7 {[%emt 0:00:06]} 55. Kg3 {[%emt 0:00:33]} b3 {[%emt 0:00:41] ( -> ...b2)} 56. Rhc5 {[%emt 0:00:07]} b2 {[%emt 0:02:03]} (56... Be4 $142 57. Rc3 b2) 57. R8c7+ {[%emt 0:01:19]} Ke6 {[%emt 0:00:23]} 58. Kh4 {[%emt 0:00:35]} Qxc5 {[%emt 0:00:21] What a bad dream for White.  Weighted Error Value: White=0.83/Black=0.25 (precise)} 0-1

[Event "87th Spanish Championship 2022"]
[Site "Linares"]
[Date "2022.08.13"]
[Round "3.16"]
[White "Espinosa Aranda, Angel"]
[Black "Castellanos Gomez, Alejandro"]
[Result "1-0"]
[ECO "C05"]
[WhiteElo "2439"]
[BlackElo "2266"]
[Annotator "TA"]
[PlyCount "55"]
[EventDate "2022.08.11"]
[EventType "swiss"]
[EventCountry "ESP"]
[SourceTitle "playchess.com"]
[Source "ChessBase"]
[SourceQuality "1"]
[TimeControl "5400+30"]

{[%evp 15,55,33,46,45,47,21,40,0,50,37,35,23,25,0,0,-14,20,22,40,30,36,23,43,37,43,43,252,62,62,57,70,36,788,-118,725,787,777,766,747,730,29989,29990]} 1. e4 {[%emt 0:02:44]} e6 {[%emt 0:00:11]} 2. d4 {[%emt 0:00:16]} d5 {[%emt 0:00:10]} 3. Nd2 {[%emt 0:00:18][%cal Bb1d2,Bd2b3,Bb3d4][%mdl 32]} Nf6 {[%emt 0:00:32]} 4. e5 {[%emt 0:01:53]} Nfd7 {[%emt 0:00:10]} 5. f4 {[%emt 0:01:20]} c5 {[%emt 0:00:23]} 6. Ngf3 {[%emt 0:00:15]} cxd4 {[%emt 0:01:32]} 7. Nb3 {[%emt 0:01:09]} Nc6 {[%emt 0:00:31]} 8. Nbxd4 {[%emt 0:01:14]} Bc5 {[%emt 0:01:38][%cal Od7e5]} 9. c3 {[%emt 0:01:49] C05: French Tarrasch: 3...Nf6 4 e5 Nfd7, 5 f4 and 5 Bd3 sidelines.} Qe7 {[%emt 0:12:14] [#]} 10. Be2 $146 {[%emt 0:10:00]} ({Predecessor:} 10. Be3 f6 11. Bb5 Bxd4 12. Bxd4 fxe5 13. fxe5 Nxd4 14. Qxd4 O-O 15. O-O Nc5 16. b4 {1-0 (49) Delgado Ramirez,N (2605)-Bueno,A (2186) Rio de Janeiro 2017}) 10... f6 {[%emt 0:06:22]} 11. Bb5 {[%emt 0:09:54] White is slightly better.} Bxd4 {[%emt 0:15:30]} ({Black should try} 11... fxe5 $11 12. Nxc6 bxc6 13. Bxc6 Rb8) 12. Nxd4 $14 {[%emt 0:00:27]} Nxd4 {[%emt 0:15:29]} 13. Qxd4 {[%emt 0:00:08]} fxe5 {[%emt 0:00:17]} 14. fxe5 {[%emt 0:10:23] 0-0 is the strong threat.} O-O {[%emt 0:00:48]} 15. Be3 {[%emt 0:04:01]} Nb8 {[%emt 0:02:31]} 16. O-O-O {[%emt 0:13:38]} a6 {[%emt 0:01:39]} 17. Bd3 {[%emt 0:01:00] Hoping for Qg4. This bishop pair is nice.} Nc6 {[%emt 0:00:32]} 18. Qc5 {[%emt 0:00:16]} Qe8 {[%emt 0:02:31]} 19. Qd6 {[%emt 0:03:49]} Bd7 {[%emt 0:00:42]} 20. Rhf1 $36 {[%emt 0:00:41][%mdl 2048] White is pushing.} Rd8 $2 {[%emt 0:01:16] [#]} (20... Rxf1 $14 21. Rxf1 Qe7) 21. Bb6 $2 {[%emt 0:01:30]} (21. Bg5 $18) 21... Rxf1 {[%emt 0:01:31]} 22. Rxf1 {[%emt 0:01:19]} Rc8 {[%emt 0:00:17]} 23. g4 {[%emt 0:06:33][%cal Bg2g4,Bg4g5][%mdl 32] 0x0.0020ae323784dp-1022s more active pieces.} Nd8 $2 {[%emt 0:03:04][%mdl 8192] [#]} (23... Qe7 $14) 24. Rf8+ $3 $18 {[%emt 0:01:47][%mdl 512]} Qxf8 {[%emt 0:00:42]} 25. Bxh7+ $1 {[%emt 0:00:05][%mdl 64] Deflection} ({Weaker is} 25. Qxd7 Nc6 26. Qxe6+ Kh8 $17) 25... Kxh7 {[%emt 0:00:06]} 26. Qxf8 {[%emt 0:00:03]} Nc6 {[%emt 0:04:21]} 27. Qf7 {[%emt 0:03:39]} Nb8 {[%emt 0:00:41]} 28. g5 {[%emt 0:01:28] Weighted Error Value: White=0.39/Black=0.81} 1-0

[Event "87th Spanish Championship 2022"]
[Site "Linares"]
[Date "2022.08.13"]
[Round "3.17"]
[White "Rodriguez Lopez, Rafael"]
[Black "Ingunza Curro, Andres"]
[Result "1/2-1/2"]
[ECO "C88"]
[WhiteElo "2172"]
[BlackElo "2370"]
[Annotator "TA"]
[PlyCount "180"]
[EventDate "2022.08.11"]
[EventType "swiss"]
[EventCountry "ESP"]
[SourceTitle "playchess.com"]
[Source "ChessBase"]
[SourceQuality "1"]
[TimeControl "5400+30"]

{[%evp 21,180,18,35,54,47,45,37,42,58,19,51,55,55,16,56,34,41,54,69,60,124,68,69,43,58,22,44,0,40,20,43,36,65,0,0,0,2,0,0,-4,0,-16,-3,-5,-4,-6,0,0,18,18,64,85,80,68,105,98,95,101,98,105,277,62,156,150,219,213,320,310,296,237,568,527,515,525,496,439,405,376,861,730,1076,1263,1210,1274,1341,1354,1341,1331,1293,1251,1283,1089,978,910,5501,138,138,138,138,8,8,8,90,8,8,0,8,8,8,8,8,8,8,0,0,0,8,0,8,0,8,8,8,8,8,0,8,8,8,8,8,8,8,8,8,8,8,8,8,8,8,8,8,8,8,8,8,8,8,8,8,8,8,8,8,8,8,8,9,8,8]} 1. e4 {[%emt 0:00:01]} e5 {[%emt 0:00:17]} 2. Nf3 {[%emt 0:00:06]} Nc6 {[%emt 0:00:07]} 3. Bb5 {[%emt 0:00:05]} a6 {[%emt 0:00:04]} 4. Ba4 {[%emt 0:00:04]} Nf6 {[%emt 0:00:06]} 5. O-O {[%emt 0:00:07]} Be7 {[%emt 0:00:11]} 6. Re1 {[%emt 0:00:05]} b5 {[%emt 0:00:04]} 7. Bb3 {[%emt 0:00:04]} O-O {[%emt 0:00:37]} 8. a4 {[%emt 0:00:12]} b4 {[%emt 0:01:28]} 9. d4 {[%emt 0:00:19]} d6 {[%emt 0:00:11]} 10. dxe5 {[%emt 0:00:19]} dxe5 {[%emt 0:01:51]} 11. Nbd2 {[%emt 0:02:44]} Bg4 {[%emt 0:01:31]} 12. h3 {[%emt 0:01:18] C88: Closed Ruy Lopez: Anti-Marshall Systems.} Bh5 {[%emt 0:00:15]} 13. g4 {[%emt 0:03:57]} Bg6 {[%emt 0:00:37][%cal Of6e4]} 14. Qe2 {[%emt 0:22:56] [#] White is slightly better.} Bc5 $146 {[%emt 0:06:03]} ({Predecessor:} 14... Qd7 15. c3 Rfd8 16. Nh4 Na5 17. Nxg6 hxg6 18. Bc2 Qc6 19. Nb3 Nb7 20. cxb4 Bxb4 {1-0 (38) Matulovic,M-Kovacs,L Sarajevo 1969}) 15. Bc4 {[%emt 0:03:32]} Qc8 {[%emt 0:06:02]} 16. c3 {[%emt 0:00:40]} Kh8 {[%emt 0:12:07][%cal Of6g4]} 17. Nh4 {[%emt 0:06:52]} (17. Nb3 $5 {[%cal Rb3c5]} Ba7 18. Nh4 $11) 17... Nd8 {[%emt 0:01:38]} 18. Nf5 {[%emt 0:05:00]} Ne6 {[%emt 0:01:30]} 19. Nf3 {[%emt 0:01:13]} Nd7 {[%emt 0:01:20]} 20. a5 {[%emt 0:03:51]} Qb7 {[%emt 0:05:19]} (20... bxc3 $14 21. bxc3 Bd6) 21. Bd5 {[%emt 0:15:25]} (21. N5h4 $16) 21... c6 $14 {[%emt 0:01:31]} 22. Bc4 {[%emt 0:00:03]} Qa7 {[%emt 0:00:57]} 23. Ng5 {[%emt 0:05:47]} Nf4 {[%emt 0:03:59]} 24. Qf1 {[%emt 0:06:16]} (24. Bxf4 $5 exf4 25. Nf3 $11) 24... h6 {[%emt 0:01:14]} 25. Bxf4 {[%emt 0:01:04]} exf4 {[%emt 0:00:23]} 26. Nf3 {[%emt 0:00:04]} Rfe8 {[%emt 0:01:55]} 27. Rad1 {[%emt 0:00:29]} (27. e5 $1 $14) 27... Ne5 {[%emt 0:02:02]} 28. Nxe5 {[%emt 0:01:56]} Rxe5 {[%emt 0:00:06]} 29. Kg2 {[%emt 0:00:35]} bxc3 {[%emt 0:01:01]} 30. bxc3 {[%emt 0:00:11]} Bf8 {[%emt 0:05:34]} 31. Rd2 {[%emt 0:06:12][%cal Bd1d2,Bd2d7,Bd7f7][%mdl 32]} Rae8 {[%emt 0:04:42]} 32. Red1 {[%emt 0:01:57]} Rxe4 {[%emt 0:01:25] aiming for ...Qc5.} 33. Rd7 {[%emt 0:00:08]} f3+ {[%emt 0:00:18]} 34. Kxf3 {[%emt 0:01:39]} Qc5 {[%emt 0:26:39]} 35. Bxf7 {[%emt 0:02:14] Active counter play!} Bxf7 {[%emt 0:04:13]} (35... Qxc3+ 36. Qd3 Qxd3+ 37. R1xd3 Bxf7 38. Rxf7 $16) (35... Bxf5 $11 36. Bxe8 Qxc3+ 37. R7d3 Qf6 38. gxf5 Rxe8) 36. Rxf7 {[%emt 0:00:14]} g6 {[%emt 0:01:50]} 37. Ng3 {[%emt 0:01:38]} (37. Ne3 Kg8 38. Rdd7 Qe5 $11) 37... Re1 {[%emt 0:03:13]} 38. Rxe1 {[%emt 0:02:53] Chess con chili.} ({Don't blunder} 38. Qxe1 $2 Rxe1 39. Rd8 Re8 $3 $19 {[%mdl 512]}) 38... Qd5+ {[%emt 0:00:12]} 39. Re4 {[%emt 0:00:22]} Qxf7+ {[%emt 0:00:09]} 40. Kg2 {[%emt 0:00:07]} Qd5 $2 {[%emt 0:04:39]} (40... Rxe4 $16 41. Nxe4 Qd5) 41. Qc4 $2 {[%emt 0:01:48]} (41. c4 $18 Qd7 42. Rxe8 Qxe8 43. c5) 41... Qxc4 {[%emt 0:00:32]} ({Black should try} 41... Rxe4 $14 42. Qxe4 Kg7) 42. Rxc4 {[%emt 0:00:05][%mdl 4096] Endgame KRB-KRN} c5 {[%emt 0:00:05]} (42... Rc8 $16 {was worth a try.} 43. Rd4 Re8) 43. Re4 $18 {[%emt 0:00:24]} Rxe4 {[%emt 0:02:15]} (43... Re7 {might work better.} 44. Kf3 Kg7 45. Rxe7+ Bxe7) 44. Nxe4 {[%emt 0:00:06] KB-KN} c4 {[%emt 0:00:15]} 45. Kf3 {[%emt 0:00:44]} Be7 $2 {[%emt 0:00:18]} (45... Bg7 {is tougher.} 46. Kf4 Kh7) 46. Ke3 {[%emt 0:01:32]} Bd8 {[%emt 0:00:02]} 47. Kd4 {[%emt 0:00:18] Nc5 is the strong threat.} Bxa5 {[%emt 0:00:05]} 48. Kxc4 {[%emt 0:00:06] Strongly threatening Nc5.} Kg7 {[%emt 0:00:38]} 49. Nc5 {[%emt 0:00:21]} Bb6 $2 {[%emt 0:00:09]} (49... Kf6 50. Kd5 (50. Nxa6 Kg5 $18) 50... Ke7) 50. Nxa6 {[%emt 0:00:25]} Bxf2 {[%emt 0:00:06]} 51. Nc5 {[%emt 0:00:40]} Kf7 {[%emt 0:02:32]} 52. Ne4 {[%emt 0:00:08]} Be1 {[%emt 0:00:21]} 53. Kd5 {[%emt 0:00:07]} Ke7 {[%emt 0:00:52]} 54. c4 {[%emt 0:00:09][%cal Bc3c4,Bc4c5,Bc5c6][%mdl 32]} Ba5 {[%emt 0:00:21]} 55. c5 {[%emt 0:00:16]} Bc7 {[%emt 0:00:05]} 56. c6 {[%emt 0:00:39]} Bh2 {[%emt 0:00:21]} 57. Nc5 {[%emt 0:03:22]} h5 {[%emt 0:00:59] [#]} 58. Nd7 $2 {[%emt 0:01:06]} (58. g5 $1 $18 {and the rest is easy.} Kd8 59. Nd7) 58... hxg4 $16 {[%emt 0:00:19]} 59. hxg4 {[%emt 0:00:04] White threatens Ne5 and mate.} Bc7 {[%emt 0:01:13]} 60. g5 {[%emt 0:02:53]} ({White should play} 60. Kc4 $16) 60... Bf4 $11 {[%emt 0:00:34]} 61. Nc5 {[%emt 0:00:07]} Bh2 {[%emt 0:00:52] [#]} (61... Bg3 $1 $11 {remains equal.}) 62. Ne6 {[%emt 0:00:14]} ({Better is} 62. Nd3 $1 $16 {[%cal Rd3e5] Threatening mate with Ne5.} Kd8 63. Ke6) 62... Bg3 {[%emt 0:00:14] The position is equal.} 63. Nc5 {[%emt 0:00:49]} (63. c7 {seems wilder.} Kd7 64. Ke4 Bd6 65. Kf3) 63... Kd8 {[%emt 0:00:40]} 64. Ne4 {[%emt 0:00:57]} Bf4 {[%emt 0:00:16]} 65. Kc5 {[%emt 0:00:29]} Kc7 {[%emt 0:00:20]} 66. Kb5 {[%emt 0:01:20]} Kc8 {[%emt 0:00:36]} 67. Kb6 {[%emt 0:00:11]} Be3+ {[%emt 0:00:03]} 68. Kb5 {[%emt 0:00:07]} Bf4 {[%emt 0:00:05]} 69. Kc5 {[%emt 0:00:42]} Kc7 {[%emt 0:00:37]} 70. Kd5 {[%emt 0:00:05]} Kb6 {[%emt 0:00:39]} 71. Nc5 {[%emt 0:01:37]} Bxg5 {[%emt 0:01:11]} 72. Ne6 {[%emt 0:00:11]} Be7 {[%emt 0:00:22]} 73. Nd4 {[%emt 0:00:29]} (73. c7 {with more complications.} Kb7 74. Nf4 g5 75. Ke6) 73... g5 {[%emt 0:00:49]} 74. Ke6 {[%emt 0:00:33] White wants to mate with Kd7.} Bd8 $1 {[%emt 0:00:34]} 75. Kd7 {[%emt 0:00:13]} Bc7 {[%emt 0:00:01]} 76. Ne6 {[%emt 0:00:09][%csl LRc7,LRg5]} Bb8 {[%emt 0:00:55]} 77. Nxg5 {[%emt 0:00:07]} Bh2 {[%emt 0:00:36]} 78. Ne4 {[%emt 0:00:26]} Bc7 {[%emt 0:00:29]} 79. Nd6 {[%emt 0:00:41] Nc8+ would kill now.} Bb8 {[%emt 0:00:13]} 80. Nc8+ {[%emt 0:00:09]} Kc5 {[%emt 0:00:30]} 81. Ne7 {[%emt 0:00:26]} Kb6 {[%emt 0:00:11]} 82. Ng6 {[%emt 0:01:12]} Bh2 {[%emt 0:00:36]} 83. Nf8 $1 {[%emt 0:00:23]} Bc7 {[%emt 0:00:26]} 84. Ne6 {[%emt 0:00:10]} Bb8 {[%emt 0:00:08]} 85. Nd8 {[%emt 0:00:07]} Bc7 {[%emt 0:00:14]} 86. Nf7 $1 {[%emt 0:00:33]} Bb8 $1 {[%emt 0:00:24]} 87. Nd6 {[%emt 0:00:18]} Kc5 {[%emt 0:00:37]} 88. Nf5 {[%emt 0:00:08]} Kb6 {[%emt 0:00:22]} 89. Ne7 {[%emt 0:00:06]} Bh2 {[%emt 0:01:08]} 90. Nc8+ {[%emt 0:00:13]} Kc5 {[%emt 0:00:07] Black defended with fortune.  Weighted Error Value: White=0.43/Black=0.33} 1/2-1/2

[Event "87th Spanish Championship 2022"]
[Site "Linares"]
[Date "2022.08.13"]
[Round "3.18"]
[White "Medarde Santiago, Luis Marcos"]
[Black "Lopez Varela, Pablo"]
[Result "0-1"]
[ECO "C41"]
[WhiteElo "2330"]
[BlackElo "2158"]
[Annotator "TA"]
[PlyCount "160"]
[EventDate "2022.08.11"]
[EventType "swiss"]
[EventCountry "ESP"]
[SourceTitle "playchess.com"]
[Source "ChessBase"]
[SourceQuality "1"]
[TimeControl "5400+30"]

{[%evp 17,160,35,33,34,45,37,24,20,29,16,22,25,28,9,22,20,28,23,26,0,14,0,0,0,0,2,12,0,0,0,0,0,0,-3,0,-32,-22,-27,-12,-6,-10,-2,0,0,0,-17,-14,-38,-33,-44,-32,-84,-50,-97,-88,-94,-64,-57,-57,-58,-46,-52,-44,-40,-50,-35,-4,-4,-10,-6,-7,-17,-20,-50,-41,-69,-53,-205,-178,-735,-721,-742,-742,-740,-739,-739,-725,-727,-727,-708,-710,-693,-687,-654,-635,-594,-629,-562,-510,-793,-793,-753,-714,-643,-614,-585,-475,-920,-874,-685,-670,-1175,-875,-721,-668,-1055,-1564,-1077,-1014,-1274,-591,-575,-566,-12829,-1872,-1591,-962,-6199,-5285,-12844,-12844,-12845,-12844,-12845,-12845,-12845,-12846,-12846,-12846,-12847,-12847,-12848,-12847,-12848,-12847]} 1. e4 {[%emt 0:00:02]} d6 {[%emt 0:01:58]} 2. d4 {[%emt 0:00:07]} Nf6 {[%emt 0:00:04]} 3. Nc3 {[%emt 0:00:04]} e5 {[%emt 0:00:07]} 4. Nf3 {[%emt 0:00:16]} Nbd7 {[%emt 0:00:05]} 5. Bc4 {[%emt 0:00:05]} Be7 {[%emt 0:00:05]} 6. a4 {[%emt 0:00:11]} O-O {[%emt 0:00:28]} 7. O-O {[%emt 0:00:05]} c6 {[%emt 0:00:04]} 8. h3 {[%emt 0:01:03]} h6 {[%emt 0:00:14]} 9. Re1 {[%emt 0:00:13]} Re8 {[%emt 0:00:23]} 10. Be3 {[%emt 0:04:27] C41: Philidor Defence.} a5 {[%emt 0:01:00]} 11. Ba2 {[%emt 0:06:55]} exd4 {[%emt 0:00:04]} 12. Qxd4 {[%emt 0:18:29] White has an edge.} Nf8 {[%emt 0:03:37]} 13. Rad1 {[%emt 0:06:48] [#] Black must now prevent e5.} Be6 $1 {[%emt 0:01:43]} 14. Bxe6 $1 {[%emt 0:03:23]} Nxe6 {[%emt 0:00:07] [#]} 15. Qc4 $146 {[%emt 0:00:20]} ({Predecessor:} 15. Qd3 Nd7 16. Nd2 Ne5 17. Qf1 f6 18. f4 Nf7 19. Nc4 Ra6 20. Qf2 Qb8 21. Bb6 {1-0 (41) Marcus,H (2666)-Kadric,D (2575) Chess.com INT 2020}) 15... Qc7 {[%emt 0:08:56]} 16. Nd4 {[%emt 0:08:42]} Bf8 {[%emt 0:07:51]} 17. Nf5 {[%emt 0:02:09]} Rad8 {[%emt 0:02:23]} 18. Rd2 {[%emt 0:09:46]} (18. Qe2 {is interesting.} d5 19. exd5 Nf4 20. Bxf4 Qxf4 21. Qf3) 18... Kh7 {[%emt 0:07:15]} 19. Red1 {[%emt 0:10:58]} g6 {[%emt 0:01:52]} 20. Ng3 {[%emt 0:01:36]} h5 {[%emt 0:05:39]} 21. Nge2 {[%emt 0:02:24]} Kg8 {[%emt 0:18:34]} 22. Nf4 {[%emt 0:00:44]} Qb8 {[%emt 0:06:59]} 23. Nxe6 {[%emt 0:08:49]} Rxe6 {[%emt 0:00:32]} 24. Bf4 {[%emt 0:05:04]} Rde8 {[%emt 0:05:23][%cal Rf6e4]} 25. Re2 {[%emt 0:02:29]} Qa7 {[%emt 0:07:25]} 26. Rde1 {[%emt 0:03:36]} Qb6 {[%emt 0:02:03]} 27. b3 {[%emt 0:00:36]} Qb4 {[%emt 0:02:57]} 28. Qd3 {[%emt 0:00:01]} Nd7 {[%emt 0:02:18]} 29. Bd2 {[%emt 0:01:50][%cal Oc3b5]} Qb6 {[%emt 0:07:03] Prevents Nb5.} 30. Be3 {[%emt 0:00:19]} Nc5 {[%emt 0:02:18]} 31. Qc4 {[%emt 0:02:15]} Qb4 {...Qxc4 is the strong threat.} 32. Qxb4 {[%emt 0:00:43]} axb4 {[%emt 0:00:48]} 33. Bxc5 {[%emt 0:00:17]} dxc5 {[%emt 0:00:21]} 34. Nb1 {[%emt 0:00:55]} ({Better is} 34. Nd1 $15) 34... Bg7 {[%emt 0:00:04]} 35. f3 {[%emt 0:00:31]} (35. Kf1 $15 {might be stronger.}) 35... Rd8 $17 {[%emt 0:00:31]} 36. Rd2 {[%emt 0:01:21]} Rxd2 {[%emt 0:01:43] Black is more active.} 37. Nxd2 {[%emt 0:00:00][%mdl 4096] Endgame KRB-KRN} Bc3 {[%emt 0:00:01]} 38. Re2 {[%emt 0:00:11]} Rd6 {[%emt 0:01:13]} 39. Nc4 {[%emt 0:00:01]} Rd1+ {[%emt 0:00:07]} 40. Kh2 {[%emt 0:00:06]} h4 {[%emt 0:02:09]} 41. g3 {[%emt 0:01:01]} hxg3+ {[%emt 0:01:15]} 42. Kxg3 {[%emt 0:00:04]} b5 {[%emt 0:00:28]} 43. axb5 {[%emt 0:00:29]} cxb5 {[%emt 0:00:04]} 44. Ne3 {[%emt 0:00:10]} Rg1+ {[%emt 0:01:54]} 45. Kh2 {[%emt 0:01:34]} Rb1 {[%emt 0:01:24]} 46. Nd5 {[%emt 0:00:18]} Rb2 {[%emt 0:00:09] And now ...c4 would win.} 47. Kg2 $2 {[%emt 0:00:34] [#] Loses the game.} (47. Kg3 $15) 47... c4 $1 $19 {[%emt 0:01:19]} 48. Nxc3 $2 {[%emt 0:01:32]} (48. Kf2) 48... cxb3 {[%emt 0:00:15] Black is clearly winning.} 49. Nd1 {[%emt 0:00:51]} bxc2 {[%emt 0:00:10]} 50. Nxb2 {[%emt 0:00:04]} c1=Q {[%emt 0:00:02] KQ-KRN} 51. Rf2 {[%emt 0:00:22]} Qg5+ {[%emt 0:00:22]} 52. Kf1 {[%emt 0:00:07]} Qg3 {[%emt 0:00:05]} 53. Nd3 {[%emt 0:00:47]} Qxh3+ {[%emt 0:00:05]} 54. Ke2 {[%emt 0:00:03]} Qd7 {[%emt 0:00:10]} 55. Nxb4 {[%emt 0:00:23]} Qd4 {[%emt 0:00:04]} 56. Nd3 {[%emt 0:00:13]} b4 {[%emt 0:00:14]} 57. Rf1 {[%emt 0:00:21]} b3 {[%emt 0:02:03]} 58. Rb1 {[%emt 0:00:09]} (58. Kd2 $142 Qf6 59. e5) 58... Qc3 {[%emt 0:00:06] Threatens to win with ...Qc2+.} 59. Rb2 {[%emt 0:00:07] Prevents Qc2+.} Kf8 {[%emt 0:00:29]} 60. Rd2 {[%emt 0:00:26]} Ke8 {[%emt 0:01:23]} 61. Nb2 {[%emt 0:00:41]} Ke7 {[%emt 0:00:16]} 62. Nd3 {[%emt 0:01:08]} (62. Nd1 $142 Qc4+ 63. Ke1) 62... Kd6 {[%emt 0:01:28]} 63. Nb2+ {[%emt 0:01:23]} Kc6 {[%emt 0:00:09]} 64. Nd3 {[%emt 0:00:07]} Kb5 {[%emt 0:00:32]} 65. Nb2 {[%emt 0:01:19]} Kb4 {[%emt 0:01:10]} 66. Nd3+ {[%emt 0:00:12]} Ka3 {[%emt 0:00:26]} 67. Ke3 {[%emt 0:00:06]} g5 {[%emt 0:00:17] Strongly threatening ...Qa1.} 68. Rg2 {[%emt 0:00:47]} f6 {[%emt 0:00:34]} (68... Qc6 $142 {aiming for ...Qb6+.} 69. Rd2 Qh6) 69. Rh2 {[%emt 0:00:34]} Qc7 {[%emt 0:00:27] Inhibits Rh7.} 70. Rd2 {[%emt 0:01:14]} Qa7+ {[%emt 0:00:43]} (70... Qb6+ $142 71. Ke2 Qg1) 71. Ke2 {[%emt 0:00:06]} Qh7 {[%emt 0:00:08]} 72. Ke3 {[%emt 0:00:50]} Qh1 {[%emt 0:00:17]} 73. Rf2 {[%emt 0:00:24]} Qg1 {[%emt 0:00:24]} 74. Ke2 {[%emt 0:00:41]} b2 {[%emt 0:00:20]} 75. Nxb2 {[%emt 0:00:07]} Kxb2 {[%emt 0:00:04] KQ-KR} 76. Rf1 {[%emt 0:00:05]} Qh2+ {[%emt 0:00:07]} 77. Rf2 {[%emt 0:00:37]} Qd6 {[%emt 0:00:07]} 78. Rf1 {[%emt 0:00:40]} Kc2 {[%emt 0:00:11][%csl Gc2][%cal Rd6d2]} 79. Re1 {[%emt 0:00:32]} Qh2+ {[%emt 0:00:21]} 80. Kf1 {[%emt 0:00:06]} Kd2 {[%emt 0:00:06] Weighted Error Value: White=0.32/Black=0.04 (flawless)} 0-1